Workbook

Sheet 지방도집계표
A1: 2016년도 도로 교통량 조사 결과 집계표(지방도 및 국가지원지방도)
A2: 노선별 | C2: 차종별 6시간(08~11, 15~18) 조사결과 | AC2: 24시간 총조사결과
C3: 시간 | D3: 계 | E3: 1종 (승용) | G3: 2종 (버스) | I3: 3종 (소형트럭) | K3: 4종 (소형트럭) | M3: 5종 (중형트럭) | O3: 6종 (중형트럭) | Q3: 7종 (중형트럭) | S3: 8종 (대형트럭) | U3: 9종 (대형트럭) | W3: 10종 (대형트럭) | Y3: 11종 (대형트럭) | AA3: 12종 (대형트럭) | AC3: 시간 | AD3: 2015년 | AE3: 2016년 | AF3: 증감 | AG3: 증감율
E4: 상행 | F4: 하행 | G4: 상행 | H4: 하행 | I4: 상행 | J4: 하행 | K4: 상행 | L4: 하행 | M4: 상행 | N4: 하행 | O4: 상행 | P4: 하행 | Q4: 상행 | R4: 하행 | S4: 상행 | T4: 하행 | U4: 상행 | V4: 하행 | W4: 상행 | X4: 하행 | Y4: 상행 | Z4: 하행 | AA4: 상행 | AB4: 하행
A5: 합계 (5지점) | C5: 합계 | D5: =SUM(D8,D11,D14,D17,D20) -> 5,573 | E5: =SUM(E8,E11,E14,E17,E20) -> 1,784 | F5: =SUM(F8,F11,F14,F17,F20) -> 1,852 | G5: 119 | H5: 122 | I5: 732 | J5: 672 | K5: 65 | L5: 63 | M5: 48 | N5: 49 | O5: 26 | P5: 21 | Q5: 5 | R5: 3 | S5: 0 | T5: 1 | U5: 0 | V5: 0 | W5: 1 | X5: 2 | Y5: 4 | Z5: 4 | AA5: 0 | AB5: 0 | AC5: 합계 | AD5: =SUM(AD6:AD7) -> 17,697 | AE5: =SUM(AE6:AE7) -> 16,683 | AF5: =AE5-AD5 -> -1,014 | AG5: =AF5/AD5 -> -6%
C6: 주간 | D6: =SUM(D9,D12,D15,D18,D21) -> 2,581 | E6: =SUM(E9,E12,E15,E18,E21) -> 784 | F6: 930 | G6: 57 | H6: 60 | I6: 283 | J6: 332 | K6: 34 | L6: 44 | M6: 15 | N6: 7 | O6: 12 | P6: 11 | Q6: 1 | R6: 2 | S6: 0 | T6: 1 | U6: 0 | V6: 0 | W6: 0 | X6: 1 | Y6: 4 | Z6: 3 | AA6: 0 | AB6: 0 | AC6: 주간 (07~19) | AD6: =SUM(AD9,AD12,AD15,AD18,AD21) -> 13,555 | AE6: =SUM(AE9,AE12,AE15,AE18,AE21) -> 14,668 | AF6: =AE6-AD6 -> 1,113 | AG6: =AF6/AD6 -> 8%
C7: 야간 | D7: =SUM(D10,D13,D16,D19,D22) -> 2,992 | E7: =SUM(E10,E13,E16,E19,E22) -> 1,000 | F7: 922 | G7: 62 | H7: 62 | I7: 449 | J7: 340 | K7: 31 | L7: 19 | M7: 33 | N7: 42 | O7: 14 | P7: 10 | Q7: 4 | R7: 1 | S7: 0 | T7: 0 | U7: 0 | V7: 0 | W7: 1 | X7: 1 | Y7: 0 | Z7: 1 | AA7: 0 | AB7: 0 | AC7: 야간 (19~07) | AD7: =SUM(AD10,AD13,AD16,AD19,AD22) -> 4,142 | AE7: =SUM(AE10,AE13,AE16,AE19,AE22) -> 2,015 | AF7: -2,127 | AG7: -51%
A8: 22-01 (나진<=>여수) | C8: 소계 | D8: =SUM(E8:AB8) -> 2,163 | E8: =SUM(E9:E10) -> 633 | F8: =SUM(F9:F10) -> 734 | G8: 38 | H8: 31 | I8: 287 | J8: 245 | K8: 45 | L8: 40 | M8: 29 | N8: 24 | O8: 21 | P8: 18 | Q8: 5 | R8: 2 | S8: 0 | T8: 0 | U8: 0 | V8: 0 | W8: 1 | X8: 2 | Y8: 4 | Z8: 4 | AA8: 0 | AB8: 0 | AC8: 소계 | AD8: =SUM(AD9:AD10) -> 4,876 | AE8: =SUM(AE9:AE10) -> 4,675 | AF8: -201 | AG8: -4%
C9: 08~11 | D9: =SUM(E9:AB9) -> 1,011 | E9: 225 | F9: 397 | G9: 18 | H9: 17 | I9: 112 | J9: 137 | K9: 23 | L9: 29 | M9: 15 | N9: 6 | O9: 11 | P9: 11 | Q9: 1 | R9: 1 | S9: 0 | T9: 0 | U9: 0 | V9: 0 | W9: 0 | X9: 1 | Y9: 4 | Z9: 3 | AA9: 0 | AB9: 0 | AC9: 주간 (07~19) | AD9: 3,882 | AE9: 4,011 | AF9: 129 | AG9: 3%
C10: 15~18 | D10: =SUM(E10:AB10) -> 1,152 | E10: 408 | F10: 337 | G10: 20 | H10: 14 | I10: 175 | J10: 108 | K10: 22 | L10: 11 | M10: 14 | N10: 18 | O10: 10 | P10: 7 | Q10: 4 | R10: 1 | S10: 0 | T10: 0 | U10: 0 | V10: 0 | W10: 1 | X10: 1 | Y10: 0 | Z10: 1 | AA10: 0 | AB10: 0 | AC10: 야간 (19~07) | AD10: 994 | AE10: 664 | AF10: -330 | AG10: -33%
A11: 22-02 (석창<=>순천) | C11: 소계 | D11: =SUM(E11:AB11) -> 1,467 | E11: =SUM(E12:E13) -> 616 | F11: =SUM(F12:F13) -> 516 | G11: 34 | H11: 44 | I11: 117 | J11: 102 | K11: 8 | L11: 13 | M11: 3 | N11: 6 | O11: 5 | P11: 3 | Q11: 0 | R11: 0 | S11: 0 | T11: 0 | U11: 0 | V11: 0 | W11: 0 | X11: 0 | Y11: 0 | Z11: 0 | AA11: 0 | AC11: 소계 | AD11: =SUM(AD12:AD13) -> 8,634 | AE11: =SUM(AE12:AE13) -> 7,626 | AF11: -1,008 | AG11: -12%
C12: 08~11 | D12: =SUM(E12:AB12) -> 704 | E12: 327 | F12: 217 | G12: 15 | H12: 24 | I12: 57 | J12: 50 | K12: 5 | L12: 7 | M12: 0 | N12: 1 | O12: 1 | P12: 0 | Q12: 0 | R12: 0 | S12: 0 | T12: 0 | U12: 0 | V12: 0 | W12: 0 | X12: 0 | Y12: 0 | Z12: 0 | AA12: 0 | AB12: 0 | AC12: 주간 (07~19) | AD12: 6,434 | AE12: 6,897 | AF12: 463 | AG12: 7%
C13: 15~18 | D13: 763 | E13: 289 | F13: 299 | G13: 19 | H13: 20 | I13: 60 | J13: 52 | K13: 3 | L13: 6 | M13: 3 | N13: 5 | O13: 4 | P13: 3 | Q13: 0 | R13: 0 | S13: 0 | T13: 0 | U13: 0 | V13: 0 | W13: 0 | X13: 0 | Y13: 0 | Z13: 0 | AA13: 0 | AB13: 0 | AC13: 야간 (19~07) | AD13: 2,200 | AE13: 729 | AF13: -1,471 | AG13: -67%
A14: 22-03 (장수<=>여수) | C14: 소계 | D14: =SUM(E14:AB14) -> 1,419 | E14: =SUM(E15:E16) -> 378 | F14: =SUM(F15:F16) -> 445 | G14: 29 | H14: 26 | I14: 244 | J14: 242 | K14: 9 | L14: 10 | M14: 16 | N14: 19 | O14: 0 | P14: 0 | Q14: 0 | R14: 0 | S14: 0 | T14: 1 | U14: 0 | V14: 0 | W14: 0 | X14: 0 | Y14: 0 | Z14: 0 | AA14: 0 | AB14: 0 | AC14: 소계 | AD14: =SUM(AD15:AD16) -> 2,791 | AE14: =SUM(AE15:AE16) -> 3,186 | AF14: 395 | AG14: 14%
C15: 08~11 | D15: 603 | E15: 162 | F15: 232 | G15: 14 | H15: 10 | I15: 76 | J15: 96 | K15: 4 | L15: 8 | M15: 0 | N15: 0 | O15: 0 | P15: 0 | Q15: 0 | R15: 0 | S15: 0 | T15: 1 | U15: 0 | V15: 0 | W15: 0 | X15: 0 | Y15: 0 | Z15: 0 | AA15: 0 | AB15: 0 | AC15: 주간 (07~19) | AD15: 2,107 | AE15: 2,770 | AF15: 663 | AG15: 31%
C16: 15~18 | D16: 816 | E16: 216 | F16: 213 | G16: 15 | H16: 16 | I16: 168 | J16: 146 | K16: 5 | L16: 2 | M16: 16 | N16: 19 | O16: 0 | P16: 0 | Q16: 0 | R16: 0 | S16: 0 | T16: 0 | U16: 0 | V16: 0 | W16: 0 | X16: 0 | Y16: 0 | Z16: 0 | AA16: 0 | AB16: 0 | AC16: 야간 (19~07) | AD16: 684 | AE16: 416 | AF16: -268 | AG16: -39%
A17: 863-01 (일반<=>서촌) | C17: 소계 | D17: 242 | E17: =SUM(E18:E19) -> 81 | F17: =SUM(F18:F19) -> 67 | G17: 8 | H17: 7 | I17: 39 | J17: 39 | K17: 0 | L17: 0 | M17: 0 | N17: 0 | O17: 0 | P17: 0 | Q17: 0 | R17: 1 | S17: 0 | T17: 0 | U17: 0 | V17: 0 | W17: 0 | X17: 0 | Y17: 0 | Z17: 0 | AA17: 0 | AB17: 0 | AC17: 소계 | AD17: =SUM(AD18:AD19) -> 800 | AE17: =SUM(AE18:AE19) -> 618 | AF17: -182 | AG17: -23%
C18: 08~11 | D18: 138 | E18: 40 | F18: 46 | G18: 5 | H18: 4 | I18: 20 | J18: 22 | K18: 0 | L18: 0 | M18: 0 | N18: 0 | O18: 0 | P18: 0 | Q18: 0 | R18: 1 | S18: 0 | T18: 0 | U18: 0 | V18: 0 | W18: 0 | X18: 0 | Y18: 0 | Z18: 0 | AA18: 0 | AB18: 0 | AC18: 주간 (07~19) | AD18: 653 | AE18: 491 | AF18: -162 | AG18: -25%
C19: 15~18 | D19: 104 | E19: 41 | F19: 21 | G19: 3 | H19: 3 | I19: 19 | J19: 17 | K19: 0 | L19: 0 | M19: 0 | N19: 0 | O19: 0 | P19: 0 | Q19: 0 | R19: 0 | S19: 0 | T19: 0 | U19: 0 | V19: 0 | W19: 0 | X19: 0 | Y19: 0 | Z19: 0 | AA19: 0 | AB19: 0 | AC19: 야간 (19~07) | AD19: 147 | AE19: 127 | AF19: -20 | AG19: -14%
A20: 863-04 (소라<=>서촌) | C20: 소계 | D20: 282 | E20: =SUM(E21:E22) -> 76 | F20: =SUM(F21:F22) -> 90 | G20: 10 | H20: 14 | I20: 45 | J20: 44 | K20: 3 | L20: 0 | M20: 0 | N20: 0 | O20: 0 | P20: 0 | Q20: 0 | R20: 0 | S20: 0 | T20: 0 | U20: 0 | V20: 0 | W20: 0 | X20: 0 | Y20: 0 | Z20: 0 | AA20: 0 | AB20: 0 | AC20: 소계 | AD20: =SUM(AD21:AD22) -> 596 | AE20: =SUM(AE21:AE22) -> 578 | AF20: -18 | AG20: -3%
C21: 08~11 | D21: 125 | E21: 30 | F21: 38 | G21: 5 | H21: 5 | I21: 18 | J21: 27 | K21: 2 | L21: 0 | M21: 0 | N21: 0 | O21: 0 | P21: 0 | Q21: 0 | R21: 0 | S21: 0 | T21: 0 | U21: 0 | V21: 0 | W21: 0 | X21: 0 | Y21: 0 | Z21: 0 | AA21: 0 | AB21: 0 | AC21: 주간 (07~19) | AD21: 479 | AE21: 499 | AF21: 20 | AG21: 4%
C22: 15~18 | D22: 157 | E22: 46 | F22: 52 | G22: 5 | H22: 9 | I22: 27 | J22: 17 | K22: 1 | L22: 0 | M22: 0 | N22: 0 | O22: 0 | P22: 0 | Q22: 0 | R22: 0 | S22: 0 | T22: 0 | U22: 0 | V22: 0 | W22: 0 | X22: 0 | Y22: 0 | Z22: 0 | AA22: 0 | AB22: 0 | AC22: 야간 (19~07) | AD22: 117 | AE22: 79 | AF22: -38 | AG22: -32%
Z28: `

Sheet 시도집계표
A1: 2016년도 도로 교통량 조사 결과 집계표(시도)
A2: 노선별 | C2: 시간 | D2: 차종별 6시간(08~11, 15~18) 조사결과 | AC2: 24시간 총조사결과
D3: 계 | E3: 1종 (승용) | G3: 2종 (버스) | I3: 3종 (소형트럭) | K3: 4종 (소형트럭) | M3: 5종 (중형트럭) | O3: 6종 (중형트럭) | Q3: 7종 (중형트럭) | S3: 8종 (대형트럭) | U3: 9종 (대형트럭) | W3: 10종 (대형트럭) | Y3: 11종 (대형트럭) | AA3: 12종 (대형트럭) | AC3: 시간대 | AD3: 2015년 | AE3: 2016년 | AF3: 증감 | AG3: 증감율
E4: 상행 | F4: 하행 | G4: 상행 | H4: 하행 | I4: 상행 | J4: 하행 | K4: 상행 | L4: 하행 | M4: 상행 | N4: 하행 | O4: 상행 | P4: 하행 | Q4: 상행 | R4: 하행 | S4: 상행 | T4: 하행 | U4: 상행 | V4: 하행 | W4: 상행 | X4: 하행 | Y4: 상행 | Z4: 하행 | AA4: 상행 | AB4: 하행
A5: 합 계 (18지점) | C5: 합계 | D5: =SUM(D6:D7) -> 13,239 | E5: =SUM(E6:E7) -> 4,618 | F5: =SUM(F6:F7) -> 4,385 | G5: 281 | H5: 335 | I5: 1,367 | J5: 1,305 | K5: 150 | L5: 103 | M5: 169 | N5: 168 | O5: 123 | P5: 111 | Q5: 19 | R5: 10 | S5: 12 | T5: 3 | U5: 12 | V5: 7 | W5: 16 | X5: 16 | Y5: 8 | Z5: 17 | AA5: 1 | AB5: 3 | AC5: 합계 | AD5: =SUM(AD6:AD7) -> 33,072 | AE5: =SUM(AE6:AE7) -> 30,197 | AF5: =AE5-AD5 -> -2,875 | AG5: =AF5/AD5 -> -9%
C6: 주간 | D6: =SUM(E6:AB6) -> 6,276 | E6: =SUM(E9,E12,E15,E18,E21,E24,E27,E30,E33,E36,E39,E42,E45,E48,E51,E54,E57,E60) -> 1,994 | F6: =SUM(F9,F12,F15,F18,F21,F24,F27,F30,F33,F36,F39,F42,F45,F48,F51,F54,F57,F60) -> 2,334 | G6: 153 | H6: 221 | I6: 510 | J6: 576 | K6: 79 | L6: 56 | M6: 112 | N6: 125 | O6: 24 | P6: 34 | Q6: 10 | R6: 10 | S6: 1 | T6: 0 | U6: 5 | V6: 5 | W6: 14 | X6: 3 | Y6: 3 | Z6: 4 | AA6: 1 | AB6: 2 | AC6: 주간 07~19 | AD6: =SUM(AD9,AD12,AD15,AD18,AD21,AD24,AD27,AD30,AD33,AD36,AD39,AD42,AD45,AD48,AD51,AD54,AD57,AD60) -> 27,308 | AE6: =SUM(AE9,AE12,AE15,AE18,AE21,AE24,AE27,AE30,AE33,AE36,AE39,AE42,AE45,AE48,AE51,AE54,AE57,AE60) -> 24,612 | AF6: =AE6-AD6 -> -2,696 | AG6: =AF6/AD6 -> -10%
C7: 야간 | D7: =SUM(E7:AB7) -> 6,963 | E7: =SUM(E10,E13,E16,E19,E22,E25,E28,E31,E34,E37,E40,E43,E46,E49,E52,E55,E58,E61) -> 2,624 | F7: =SUM(F10,F13,F16,F19,F22,F25,F28,F31,F34,F37,F40,F43,F46,F49,F52,F55,F58,F61) -> 2,051 | G7: 128 | H7: 114 | I7: 857 | J7: 729 | K7: 71 | L7: 47 | M7: 57 | N7: 43 | O7: 99 | P7: 77 | Q7: 9 | R7: 0 | S7: 11 | T7: 3 | U7: 7 | V7: 2 | W7: 2 | X7: 13 | Y7: 5 | Z7: 13 | AA7: 0 | AB7: 1 | AC7: 야간 19~07 | AD7: =SUM(AD10,AD13,AD16,AD19,AD22,AD25,AD28,AD31,AD34,AD37,AD40,AD43,AD46,AD49,AD52,AD55,AD58,AD61) -> 5,764 | AE7: =SUM(AE10,AE13,AE16,AE19,AE22,AE25,AE28,AE31,AE34,AE37,AE40,AE43,AE46,AE49,AE52,AE55,AE58,AE61) -> 5,585 | AF7: -179 | AG7: -3%
A8: 1호 | B8: 36-02-01 (임포-죽포) | C8: 소계 | D8: =SUM(E8:AB8) -> 962 | E8: =SUM(E9:E10) -> 332 | F8: =SUM(F9:F10) -> 327 | G8: 24 | H8: 25 | I8: 117 | J8: 115 | K8: 8 | L8: 9 | M8: 0 | N8: 0 | O8: 0 | P8: 0 | Q8: 1 | R8: 3 | S8: 0 | T8: 0 | U8: 0 | V8: 0 | W8: 0 | X8: 0 | Y8: 0 | Z8: 0 | AA8: 0 | AB8: 1 | AC8: 소계 | AD8: =SUM(AD9:AD10) -> 2,580 | AE8: =SUM(AE9:AE10) -> 2,270 | AF8: -310 | AG8: -12%
C9: 08~11 | D9: =SUM(E9:AB9) -> 395 | E9: =26+27+36 -> 89 | F9: =42+56+65 -> 163 | G9: =3+1+4 -> 8 | H9: =4+4+10 -> 18 | I9: =14+17+12 -> 43 | J9: =21+21+21 -> 63 | K9: =0+2 -> 2 | L9: =2+2 -> 4 | M9: 0 | N9: 0 | O9: 0 | P9: 0 | Q9: =0+1 -> 1 | R9: =2+1 -> 3 | S9: 0 | T9: 0 | U9: 0 | V9: 0 | W9: 0 | X9: 0 | Y9: 0 | Z9: 0 | AA9: 0 | AB9: 1 | AC9: 주간 07~19 | AD9: 2,114 | AE9: 1,865 | AF9: -249 | AG9: -12%
C10: 15~18 | D10: 567 | E10: =92+80+71 -> 243 | F10: =65+50+49 -> 164 | G10: =8+4+4 -> 16 | H10: =2+3+2 -> 7 | I10: =23+20+31 -> 74 | J10: =19+18+15 -> 52 | K10: =3+1+2 -> 6 | L10: =2+3 -> 5 | M10: 0 | N10: 0 | O10: 0 | P10: 0 | Q10: 0 | R10: 0 | S10: 0 | T10: 0 | U10: 0 | V10: 0 | W10: 0 | X10: 0 | Y10: 0 | Z10: 0 | AA10: 0 | AB10: 0 | AC10: 야간 19~07 | AD10: 466 | AE10: 405 | AF10: -61 | AG10: -13%
A11: 2호 | B11: 36-02-02 (군내-대율) | C11: 소계 | D11: 712 | E11: =SUM(E12:E13) -> 284 | F11: =SUM(F12:F13) -> 192 | G11: 13 | H11: 14 | I11: 96 | J11: 94 | K11: 11 | L11: 7 | M11: 0 | N11: 1 | O11: 0 | P11: 0 | Q11: 0 | R11: 0 | S11: 0 | T11: 0 | U11: 0 | V11: 0 | W11: 0 | X11: 0 | Y11: 0 | Z11: 0 | AA11: 0 | AB11: 0 | AC11: 소계 | AD11: =SUM(AD12:AD13) -> 1,830 | AE11: =SUM(AE12:AE13) -> 1,451 | AF11: -379 | AG11: -21%
C12: 08~11 | D12: 324 | E12: =36+38+22 -> 96 | F12: =35+37+41 -> 113 | G12: =3+3+2 -> 8 | H12: =2+1+5 -> 8 | I12: =18+12+7 -> 37 | J12: =16+23+17 -> 56 | K12: =1+1 -> 2 | L12: =1+2 -> 3 | M12: 0 | N12: 1 | O12: 0 | P12: 0 | Q12: 0 | R12: 0 | S12: 0 | T12: 0 | U12: 0 | V12: 0 | W12: 0 | X12: 0 | Y12: 0 | Z12: 0 | AA12: 0 | AB12: 0 | AC12: 주간 07~19 | AD12: 1,573 | AE12: 1,294 | AF12: -279 | AG12: -18%
C13: 15~18 | D13: 388 | E13: =45+71+72 -> 188 | F13: =29+25+25 -> 79 | G13: =1+2+2 -> 5 | H13: =2+2+2 -> 6 | I13: =10+23+26 -> 59 | J13: =17+9+12 -> 38 | K13: =5+3+1 -> 9 | L13: =1+2+1 -> 4 | M13: 0 | N13: 0 | O13: 0 | P13: 0 | Q13: 0 | R13: 0 | S13: 0 | T13: 0 | U13: 0 | V13: 0 | W13: 0 | X13: 0 | Y13: 0 | Z13: 0 | AA13: 0 | AB13: 0 | AC13: 야간 19~07 | AD13: 257 | AE13: 157 | AF13: -100 | AG13: -39%
A14: 4호 | B14: 36-02-03 (진두-하동) | C14: 소계 | D14: 450 | E14: =SUM(E15:E16) -> 159 | F14: =SUM(F15:F16) -> 163 | G14: 7 | H14: 6 | I14: 49 | J14: 52 | K14: 6 | L14: 8 | M14: 0 | N14: 0 | O14: 0 | P14: 0 | Q14: 0 | R14: 0 | S14: 0 | T14: 0 | U14: 0 | V14: 0 | W14: 0 | X14: 0 | Y14: 0 | Z14: 0 | AA14: 0 | AB14: 0 | AC14: 소계 | AD14: =SUM(AD15:AD16) -> 1,106 | AE14: =SUM(AE15:AE16) -> 1,013 | AF14: -93 | AG14: -8%
C15: 08~11 | D15: 201 | E15: =34+18+13 -> 65 | F15: 83 | G15: =1+1+1 -> 3 | H15: =1+1+1 -> 3 | I15: =8+6+10 -> 24 | J15: =10+6+6 -> 22 | K15: 1 | L15: 0 | M15: 0 | N15: 0 | O15: 0 | P15: 0 | Q15: 0 | R15: 0 | S15: 0 | T15: 0 | U15: 0 | V15: 0 | W15: 0 | X15: 0 | Y15: 0 | Z15: 0 | AA15: 0 | AB15: 0 | AC15: 주간 07~19 | AD15: 907 | AE15: 800 | AF15: -107 | AG15: -12%
C16: 15~18 | D16: 249 | E16: =20+27+47 -> 94 | F16: =22+28+30 -> 80 | G16: =2+1+1 -> 4 | H16: =1+2 -> 3 | I16: =11+7+7 -> 25 | J16: =8+7+15 -> 30 | K16: =1+1+3 -> 5 | L16: =2+1+5 -> 8 | M16: 0 | N16: 0 | O16: 0 | P16: 0 | Q16: 0 | R16: 0 | S16: 0 | T16: 0 | U16: 0 | V16: 0 | W16: 0 | X16: 0 | Y16: 0 | Z16: 0 | AA16: 0 | AB16: 0 | AC16: 야간 19~07 | AD16: 199 | AE16: 213 | AF16: 14 | AG16: 7%
A17: 5호 | B17: 36-02-04 (송시-도실) | C17: 소계 | D17: 2,011 | E17: =SUM(E18:E19) -> 615 | F17: =SUM(F18:F19) -> 585 | G17: 87 | H17: 113 | I17: 255 | J17: 205 | K17: 21 | L17: 17 | M17: 23 | N17: 19 | O17: 16 | P17: 15 | Q17: 8 | R17: 7 | S17: 4 | T17: 3 | U17: 0 | V17: 3 | W17: 6 | X17: 1 | Y17: 7 | Z17: 0 | AA17: 1 | AB17: 0 | AC17: 소계 | AD17: =SUM(AD18:AD19) -> 4,412 | AE17: =SUM(AE18:AE19) -> 4,507 | AF17: 95 | AG17: 2%
C18: 08~11 | D18: 919 | E18: =75+75+80 -> 230 | F18: =115+100+75 -> 290 | G18: =30+20+6 -> 56 | H18: =60+15+15 -> 90 | I18: =15+10+50 -> 75 | J18: =20+25+45 -> 90 | K18: =10+2+2 -> 14 | L18: =6+1+3 -> 10 | M18: =6+5 -> 11 | N18: =5+6 -> 11 | O18: =2+3+3 -> 8 | P18: =3+1+5 -> 9 | Q18: =3+3+1 -> 7 | R18: =2+2+3 -> 7 | S18: 1 | T18: 0 | U18: 0 | V18: 1 | W18: =3+2 -> 5 | X18: 0 | Y18: =2+1 -> 3 | Z18: 0 | AA18: =1 -> 1 | AB18: 0 | AC18: 주간 07~19 | AD18: 3,898 | AE18: 3,755 | AF18: -143 | AG18: -4%
C19: 15~18 | D19: 1,092 | E19: =90+120+175 -> 385 | F19: =115+80+100 -> 295 | G19: =8+20+3 -> 31 | H19: =6+15+2 -> 23 | I19: =60+35+85 -> 180 | J19: =40+35+40 -> 115 | K19: =5+2 -> 7 | L19: =3+4 -> 7 | M19: =4+5+3 -> 12 | N19: =3+3+2 -> 8 | O19: =2+2+4 -> 8 | P19: =0+3+3 -> 6 | Q19: =0+1 -> 1 | R19: =0 -> 0 | S19: =0+1+2 -> 3 | T19: =0+2+1 -> 3 | U19: =0 -> 0 | V19: =2 -> 2 | W19: =0+1 -> 1 | X19: =0+1 -> 1 | Y19: =1+1+2 -> 4 | Z19: =0 -> 0 | AA19: =0 -> 0 | AB19: =0 -> 0 | AC19: 야간 19~07 | AD19: 514 | AE19: 752 | AF19: 238 | AG19: 46%
A20: 7호 | B20: 36-02-05 (둔전-굴전) | C20: 소계 | D20: 561 | E20: =SUM(E21:E22) -> 209 | F20: =SUM(F21:F22) -> 208 | G20: 10 | H20: 8 | I20: 60 | J20: 61 | K20: 4 | L20: 1 | M20: 0 | N20: 0 | O20: 0 | P20: 0 | Q20: 0 | R20: 0 | S20: 0 | T20: 0 | U20: 0 | V20: 0 | W20: 0 | X20: 0 | Y20: 0 | Z20: 0 | AA20: 0 | AB20: 0 | AC20: 소계 | AD20: =SUM(AD21:AD22) -> 1,052 | AE20: =SUM(AE21:AE22) -> 1,240 | AF20: 188 | AG20: 18%
C21: 08~11 | D21: 295 | E21: =47+23+26 -> 96 | F21: =61+31+30 -> 122 | G21: =3+2 -> 5 | H21: =1+1+1 -> 3 | I21: =11+7+12 -> 30 | J21: =7+13+14 -> 34 | K21: =1+2+1 -> 4 | L21: =0+1 -> 1 | M21: 0 | N21: 0 | O21: 0 | P21: 0 | Q21: 0 | R21: 0 | S21: 0 | T21: 0 | U21: 0 | V21: 0 | W21: 0 | X21: 0 | Y21: 0 | Z21: 0 | AA21: 0 | AB21: 0 | AC21: 주간 07~19 | AD21: 884 | AE21: 1,076 | AF21: 192 | AG21: 22%
C22: 15~18 | D22: 266 | E22: =43+27+43 -> 113 | F22: =31+29+26 -> 86 | G22: =2+3 -> 5 | H22: =2+2+1 -> 5 | I22: =8+10+12 -> 30 | J22: =19+5+3 -> 27 | K22: 0 | L22: 0 | M22: 0 | N22: 0 | O22: 0 | P22: 0 | Q22: 0 | R22: 0 | S22: 0 | T22: 0 | U22: 0 | V22: 0 | W22: 0 | X22: 0 | Y22: 0 | Z22: 0 | AA22: 0 | AB22: 0 | AC22: 야간 19~07 | AD22: 168 | AE22: 164 | AF22: -4 | AG22: -2%
A23: 8호 | B23: 36-02-06 (풍류-내기) | C23: 소계 | D23: 593 | E23: =SUM(E24:E25) -> 260 | F23: =SUM(F24:F25) -> 251 | G23: 5 | H23: 6 | I23: 27 | J23: 26 | K23: 11 | L23: 1 | M23: 1 | N23: 1 | O23: 0 | P23: 2 | Q23: 2 | R23: 0 | S23: 0 | T23: 0 | U23: 0 | V23: 0 | W23: 0 | X23: 0 | Y23: 0 | Z23: 0 | AA23: 0 | AB23: 0 | AC23: 소계 | AD23: =SUM(AD24:AD25) -> 1,904 | AE23: =SUM(AE24:AE25) -> 1,324 | AF23: -580 | AG23: -30%
C24: 08~11 | D24: 257 | E24: 118 | F24: 123 | G24: 3 | H24: 0 | I24: 4 | J24: 2 | K24: 7 | L24: 0 | M24: 0 | N24: 0 | O24: 0 | P24: 0 | Q24: 0 | R24: 0 | S24: 0 | T24: 0 | U24: 0 | V24: 0 | W24: 0 | X24: 0 | Y24: 0 | Z24: 0 | AA24: 0 | AB24: 0 | AC24: 주간 07~19 | AD24: 1,711 | AE24: 1,054 | AF24: -657 | AG24: -38%
C25: 15~18 | D25: 336 | E25: 142 | F25: 128 | G25: 2 | H25: 6 | I25: 23 | J25: 24 | K25: 4 | L25: 1 | M25: 1 | N25: 1 | O25: 0 | P25: 2 | Q25: 2 | R25: 0 | S25: 0 | T25: 0 | U25: 0 | V25: 0 | W25: 0 | X25: 0 | Y25: 0 | Z25: 0 | AA25: 0 | AB25: 0 | AC25: 야간 19~07 | AD25: 193 | AE25: 270 | AF25: 77 | AG25: 40%
A26: 10호 | B26: 36-02-07 (달천-대포) | C26: 소계 | D26: 514 | E26: =SUM(E27:E28) -> 143 | F26: =SUM(F27:F28) -> 160 | G26: 6 | H26: 4 | I26: 65 | J26: 65 | K26: 3 | L26: 4 | M26: 19 | N26: 21 | O26: 11 | P26: 13 | Q26: 0 | R26: 0 | S26: 0 | T26: 0 | U26: 0 | V26: 0 | W26: 0 | X26: 0 | Y26: 0 | Z26: 0 | AA26: 0 | AB26: 0 | AC26: 소계 | AD26: =SUM(AD27:AD28) -> 1,290 | AE26: =SUM(AE27:AE28) -> 1,095 | AF26: -195 | AG26: -15%
C27: 08~11 | D27: 249 | E27: 67 | F27: 88 | G27: 2 | H27: 3 | I27: 27 | J27: 34 | K27: 1 | L27: 1 | M27: 7 | N27: 8 | O27: 5 | P27: 6 | Q27: 0 | R27: 0 | S27: 0 | T27: 0 | U27: 0 | V27: 0 | W27: 0 | X27: 0 | Y27: 0 | Z27: 0 | AA27: 0 | AB27: 0 | AC27: 주간 07~19 | AD27: 1,051 | AE27: 916 | AF27: -135 | AG27: -13%
C28: 15~18 | D28: 265 | E28: 76 | F28: 72 | G28: 4 | H28: 1 | I28: 38 | J28: 31 | K28: 2 | L28: 3 | M28: 12 | N28: 13 | O28: 6 | P28: 7 | Q28: 0 | R28: 0 | S28: 0 | T28: 0 | U28: 0 | V28: 0 | W28: 0 | X28: 0 | Y28: 0 | Z28: 0 | AA28: 0 | AB28: 0 | AC28: 야간 19~07 | AD28: 239 | AE28: 179 | AF28: -60 | AG28: -25%
A29: 11호 | B29: 36-02-08 (덕양-연화) | C29: 소계 | D29: 749 | E29: =SUM(E30:E31) -> 175 | F29: =SUM(F30:F31) -> 230 | G29: 5 | H29: 9 | I29: 19 | J29: 21 | K29: 10 | L29: 2 | M29: 84 | N29: 95 | O29: 53 | P29: 46 | Q29: 0 | R29: 0 | S29: 0 | T29: 0 | U29: 0 | V29: 0 | W29: 0 | X29: 0 | Y29: 0 | Z29: 0 | AA29: 0 | AB29: 0 | AC29: 소계 | AD29: =SUM(AD30:AD31) -> 1,582 | AE29: =SUM(AE30:AE31) -> 1,764 | AF29: 182 | AG29: 12%
C30: 08~11 | D30: 394 | E30: 50 | F30: 149 | G30: 3 | H30: 8 | I30: 2 | J30: 2 | K30: 6 | L30: 0 | M30: 81 | N30: 90 | O30: 3 | P30: 0 | Q30: 0 | R30: 0 | S30: 0 | T30: 0 | U30: 0 | V30: 0 | W30: 0 | X30: 0 | Y30: 0 | Z30: 0 | AA30: 0 | AB30: 0 | AC30: 주간 07~19 | AD30: 1,389 | AE30: 1,555 | AF30: 166 | AG30: 12%
C31: 15~18 | D31: 355 | E31: 125 | F31: 81 | G31: 2 | H31: 1 | I31: 17 | J31: 19 | K31: 4 | L31: 2 | M31: 3 | N31: 5 | O31: 50 | P31: 46 | Q31: 0 | R31: 0 | S31: 0 | T31: 0 | U31: 0 | V31: 0 | W31: 0 | X31: 0 | Y31: 0 | Z31: 0 | AA31: 0 | AB31: 0 | AC31: 야간 19~07 | AD31: 193 | AE31: 209 | AF31: 16 | AG31: 8%
A32: 12호 | B32: 36-02-09 (달천-신흥) | C32: 소계 | D32: 251 | E32: =SUM(E33:E34) -> 99 | F32: =SUM(F33:F34) -> 65 | G32: 4 | H32: 5 | I32: 47 | J32: 27 | K32: 1 | L32: 2 | M32: 1 | N32: 0 | O32: 0 | P32: 0 | Q32: 0 | R32: 0 | S32: 0 | T32: 0 | U32: 0 | V32: 0 | W32: 0 | X32: 0 | Y32: 0 | Z32: 0 | AA32: 0 | AB32: 0 | AC32: 소계 | AD32: =SUM(AD33:AD34) -> 719 | AE32: =SUM(AE33:AE34) -> 581 | AF32: -138 | AG32: -19%
C33: 08~11 | D33: 106 | E33: 42 | F33: 23 | G33: 3 | H33: 2 | I33: 20 | J33: 12 | K33: 1 | L33: 2 | M33: 1 | N33: 0 | O33: 0 | P33: 0 | Q33: 0 | R33: 0 | S33: 0 | T33: 0 | U33: 0 | V33: 0 | W33: 0 | X33: 0 | Y33: 0 | Z33: 0 | AA33: 0 | AB33: 0 | AC33: 주간 07~19 | AD33: 601 | AE33: 482 | AF33: -119 | AG33: -20%
C34: 15~18 | D34: 145 | E34: 57 | F34: 42 | G34: 1 | H34: 3 | I34: 27 | J34: 15 | K34: 0 | L34: 0 | M34: 0 | N34: 0 | O34: 0 | P34: 0 | Q34: 0 | R34: 0 | S34: 0 | T34: 0 | U34: 0 | V34: 0 | W34: 0 | X34: 0 | Y34: 0 | Z34: 0 | AA34: 0 | AB34: 0 | AC34: 야간 19~07 | AD34: 118 | AE34: 99 | AF34: -19 | AG34: -16%
A35: 14호 | B35: 36-02-10 (신풍-애양) | C35: 소계 | D35: 1,032 | E35: =SUM(E36:E37) -> 484 | F35: =SUM(F36:F37) -> 424 | G35: 15 | H35: 13 | I35: 41 | J35: 48 | K35: 5 | L35: 2 | M35: 0 | N35: 0 | O35: 0 | P35: 0 | Q35: 0 | R35: 0 | S35: 0 | T35: 0 | U35: 0 | V35: 0 | W35: 0 | X35: 0 | Y35: 0 | Z35: 0 | AA35: 0 | AB35: 0 | AC35: 소계 | AD35: =SUM(AD36:AD37) -> 1,804 | AE35: =SUM(AE36:AE37) -> 2,160 | AF35: 356 | AG35: 20%
C36: 08~11 | D36: 548 | E36: 335 | F36: 185 | G36: 9 | H36: 7 | I36: 5 | J36: 5 | K36: 1 | L36: 1 | M36: 0 | N36: 0 | O36: 0 | P36: 0 | Q36: 0 | R36: 0 | S36: 0 | T36: 0 | U36: 0 | V36: 0 | W36: 0 | X36: 0 | Y36: 0 | Z36: 0 | AA36: 0 | AB36: 0 | AC36: 주간 07~19 | AD36: 1,600 | AE36: 1,926 | AF36: 326 | AG36: 20%
C37: 15~18 | D37: 484 | E37: 149 | F37: 239 | G37: 6 | H37: 6 | I37: 36 | J37: 43 | K37: 4 | L37: 1 | M37: 0 | N37: 0 | O37: 0 | P37: 0 | Q37: 0 | R37: 0 | S37: 0 | T37: 0 | U37: 0 | V37: 0 | W37: 0 | X37: 0 | Y37: 0 | Z37: 0 | AA37: 0 | AB37: 0 | AC37: 야간 19~07 | AD37: 204 | AE37: 234 | AF37: 30 | AG37: 15%
A38: 15호 | B38: 36-02-11 (조화-연화) | C38: 소계 | D38: 923 | E38: =SUM(E39:E40) -> 300 | F38: =SUM(F39:F40) -> 297 | G38: 42 | H38: 65 | I38: 36 | J38: 62 | K38: 16 | L38: 12 | M38: 10 | N38: 9 | O38: 9 | P38: 12 | Q38: 2 | R38: 0 | S38: 8 | T38: 0 | U38: 10 | V38: 2 | W38: 4 | X38: 14 | Y38: 0 | Z38: 13 | AA38: 0 | AB38: 0 | AC38: 소계 | AD38: =SUM(AD39:AD40) -> 2,777 | AE38: =SUM(AE39:AE40) -> 2,165 | AF38: -612 | AG38: -22%
C39: 08~11 | D39: 458 | E39: 148 | F39: 152 | G39: 27 | H39: 46 | I39: 18 | J39: 13 | K39: 9 | L39: 9 | M39: 4 | N39: 7 | O39: 2 | P39: 10 | Q39: 0 | R39: 0 | S39: 0 | T39: 0 | U39: 4 | V39: 2 | W39: 4 | X39: 3 | Y39: 0 | Z39: 0 | AA39: 0 | AB39: 0 | AC39: 주간 07~19 | AD39: 2,248 | AE39: 1,713 | AF39: -535 | AG39: -24%
C40: 15~18 | D40: 465 | E40: 152 | F40: 145 | G40: 15 | H40: 19 | I40: 18 | J40: 49 | K40: 7 | L40: 3 | M40: 6 | N40: 2 | O40: 7 | P40: 2 | Q40: 2 | R40: 0 | S40: 8 | T40: 0 | U40: 6 | V40: 0 | W40: 0 | X40: 11 | Y40: 0 | Z40: 13 | AA40: 0 | AB40: 0 | AC40: 야간 19~07 | AD40: 529 | AE40: 452 | AF40: -77 | AG40: -15%
A41: 16호 | B41: 36-02-12 (상봉-여흥) | C41: 소계 | D41: 1,054 | E41: =SUM(E42:E43) -> 294 | F41: =SUM(F42:F43) -> 317 | G41: 24 | H41: 31 | I41: 129 | J41: 133 | K41: 31 | L41: 18 | M41: 9 | N41: 6 | O41: 30 | P41: 17 | Q41: 4 | R41: 0 | S41: 0 | T41: 0 | U41: 0 | V41: 2 | W41: 2 | X41: 0 | Y41: 1 | Z41: 4 | AA41: 0 | AB41: 2 | AC41: 소계 | AD41: =SUM(AD42:AD43) -> 3,566 | AE41: =SUM(AE42:AE43) -> 2,488 | AF41: -1,078 | AG41: -30%
C42: 08~11 | D42: 553 | E42: 150 | F42: 160 | G42: 12 | H42: 20 | I42: 73 | J42: 82 | K42: 19 | L42: 10 | M42: 5 | N42: 3 | O42: 4 | P42: 6 | Q42: 0 | R42: 0 | S42: 0 | T42: 0 | U42: 0 | V42: 2 | W42: 2 | X42: 0 | Y42: 0 | Z42: 4 | AA42: 0 | AB42: 1 | AC42: 주간 07~19 | AD42: 2,940 | AE42: 1,955 | AF42: -985 | AG42: -34%
C43: 15~18 | D43: 501 | E43: 144 | F43: 157 | G43: 12 | H43: 11 | I43: 56 | J43: 51 | K43: 12 | L43: 8 | M43: 4 | N43: 3 | O43: 26 | P43: 11 | Q43: 4 | R43: 0 | S43: 0 | T43: 0 | U43: 0 | V43: 0 | W43: 0 | X43: 0 | Y43: 1 | Z43: 0 | AA43: 0 | AB43: 1 | AC43: 야간 19~07 | AD43: 626 | AE43: 533 | AF43: -93 | AG43: -15%
A44: 17호 | B44: 36-02-13 (나진-창무) | C44: 소계 | D44: 322 | E44: =SUM(E45:E46) -> 128 | F44: =SUM(F45:F46) -> 121 | G44: 9 | H44: 11 | I44: 24 | J44: 25 | K44: 0 | L44: 0 | M44: 3 | N44: 1 | O44: 0 | P44: 0 | Q44: 0 | R44: 0 | S44: 0 | T44: 0 | U44: 0 | V44: 0 | W44: 0 | X44: 0 | Y44: 0 | Z44: 0 | AA44: 0 | AB44: 0 | AC44: 소계 | AD44: =SUM(AD45:AD46) -> 654 | AE44: =SUM(AE45:AE46) -> 824 | AF44: 170 | AG44: 26%
C45: 08~11 | D45: 145 | E45: 78 | F45: 56 | G45: 5 | H45: 4 | I45: 0 | J45: 1 | K45: 0 | L45: 0 | M45: 1 | N45: 0 | O45: 0 | P45: 0 | Q45: 0 | R45: 0 | S45: 0 | T45: 0 | U45: 0 | V45: 0 | W45: 0 | X45: 0 | Y45: 0 | Z45: 0 | AA45: 0 | AB45: 0 | AC45: 주간 07~19 | AD45: 529 | AE45: 566 | AF45: 37 | AG45: 7%
C46: 15~18 | D46: 177 | E46: 50 | F46: 65 | G46: 4 | H46: 7 | I46: 24 | J46: 24 | K46: 0 | L46: 0 | M46: 2 | N46: 1 | O46: 0 | P46: 0 | Q46: 0 | R46: 0 | S46: 0 | T46: 0 | U46: 0 | V46: 0 | W46: 0 | X46: 0 | Y46: 0 | Z46: 0 | AA46: 0 | AB46: 0 | AC46: 야간 19~07 | AD46: 125 | AE46: 258 | AF46: 133 | AG46: 106%
A47: 18호 | B47: 36-02-14 (용주-소호) | C47: 소계 | D47: 1,695 | E47: =SUM(E48:E49) -> 707 | F47: =SUM(F48:F49) -> 690 | G47: 10 | H47: 9 | I47: 126 | J47: 110 | K47: 5 | L47: 5 | M47: 12 | N47: 9 | O47: 3 | P47: 6 | Q47: 0 | R47: 0 | S47: 0 | T47: 0 | U47: 1 | V47: 0 | W47: 1 | X47: 1 | Y47: 0 | Z47: 0 | AA47: 0 | AB47: 0 | AC47: 소계 | AD47: =SUM(AD48:AD49) -> 4,844 | AE47: =SUM(AE48:AE49) -> 4,361 | AF47: -483 | AG47: -10%
C48: 08~11 | D48: 758 | E48: 247 | F48: 439 | G48: 2 | H48: 2 | I48: 28 | J48: 25 | K48: 3 | L48: 4 | M48: 0 | N48: 3 | O48: 2 | P48: 3 | Q48: 0 | R48: 0 | S48: 0 | T48: 0 | U48: 0 | V48: 0 | W48: 0 | X48: 0 | Y48: 0 | Z48: 0 | AA48: 0 | AB48: 0 | AC48: 주간 07~19 | AD48: 3,477 | AE48: 3,254 | AF48: -223 | AG48: -6%
C49: 15~18 | D49: 937 | E49: 460 | F49: 251 | G49: 8 | H49: 7 | I49: 98 | J49: 85 | K49: 2 | L49: 1 | M49: 12 | N49: 6 | O49: 1 | P49: 3 | Q49: 0 | R49: 0 | S49: 0 | T49: 0 | U49: 1 | V49: 0 | W49: 1 | X49: 1 | Y49: 0 | Z49: 0 | AA49: 0 | AB49: 0 | AC49: 야간 19~07 | AD49: 1,367 | AE49: 1,107 | AF49: -260 | AG49: -19%
A50: 21호 | B50: 36-02-15 (세포-서촌) | C50: 소계 | D50: 319 | E50: =SUM(E51:E52) -> 116 | F50: =SUM(F51:F52) -> 68 | G50: 7 | H50: 7 | I50: 55 | J50: 37 | K50: 6 | L50: 3 | M50: 7 | N50: 6 | O50: 1 | P50: 0 | Q50: 2 | R50: 0 | S50: 0 | T50: 0 | U50: 1 | V50: 0 | W50: 3 | X50: 0 | Y50: 0 | Z50: 0 | AA50: 0 | AB50: 0 | AC50: 소계 | AD50: =SUM(AD51:AD52) -> 690 | AE50: =SUM(AE51:AE52) -> 683 | AF50: -7 | AG50: -1%
C51: 08~11 | D51: 131 | E51: 32 | F51: 41 | G51: 3 | H51: 3 | I51: 16 | J51: 21 | K51: 3 | L51: 2 | M51: 2 | N51: 2 | O51: 0 | P51: 0 | Q51: 2 | R51: 0 | S51: 0 | T51: 0 | U51: 1 | V51: 0 | W51: 3 | X51: 0 | Y51: 0 | Z51: 0 | AA51: 0 | AB51: 0 | AC51: 주간 07~19 | AD51: 586 | AE51: 569 | AF51: -17 | AG51: -3%
C52: 15~18 | D52: 188 | E52: 84 | F52: 27 | G52: 4 | H52: 4 | I52: 39 | J52: 16 | K52: 3 | L52: 1 | M52: 5 | N52: 4 | O52: 1 | P52: 0 | Q52: 0 | R52: 0 | S52: 0 | T52: 0 | U52: 0 | V52: 0 | W52: 0 | X52: 0 | Y52: 0 | Z52: 0 | AA52: 0 | AB52: 0 | AC52: 야간 19~07 | AD52: 104 | AE52: 114 | AF52: 10 | AG52: 10%
A53: 20호 | B53: 36-02-16 (우학-송고) | C53: 소계 | D53: 441 | E53: =SUM(E54:E55) -> 105 | F53: =SUM(F54:F55) -> 110 | G53: 8 | H53: 8 | I53: 91 | J53: 99 | K53: 10 | L53: 10 | M53: 0 | N53: 0 | O53: 0 | P53: 0 | Q53: 0 | R53: 0 | S53: 0 | T53: 0 | U53: 0 | V53: 0 | W53: 0 | X53: 0 | Y53: 0 | Z53: 0 | AA53: 0 | AB53: 0 | AC53: 소계 | AD53: =SUM(AD54:AD55) -> 768 | AE53: =SUM(AE54:AE55) -> 786 | AF53: 18 | AG53: 2%
C54: 08~11 | D54: 208 | E54: 45 | F54: 58 | G54: 4 | H54: 4 | I54: 40 | J54: 46 | K54: 4 | L54: 7 | M54: 0 | N54: 0 | O54: 0 | P54: 0 | Q54: 0 | R54: 0 | S54: 0 | T54: 0 | U54: 0 | V54: 0 | W54: 0 | X54: 0 | Y54: 0 | Z54: 0 | AA54: 0 | AB54: 0 | AC54: 주간 07~19 | AD54: 680 | AE54: 677 | AF54: -3 | AG54: -0%
C55: 15~18 | D55: 233 | E55: 60 | F55: 52 | G55: 4 | H55: 4 | I55: 51 | J55: 53 | K55: 6 | L55: 3 | M55: 0 | N55: 0 | O55: 0 | P55: 0 | Q55: 0 | R55: 0 | S55: 0 | T55: 0 | U55: 0 | V55: 0 | W55: 0 | X55: 0 | Y55: 0 | Z55: 0 | AA55: 0 | AB55: 0 | AC55: 야간 19~07 | AD55: 88 | AE55: 109 | AF55: 21 | AG55: 24%
A56: 6호 | B56: 36-02-17 (호령-신흥) | C56: 소계 | D56: 172 | E56: =SUM(E57:E58) -> 47 | F56: =SUM(F57:F58) -> 25 | G56: 5 | H56: 1 | I56: 45 | J56: 49 | K56: 0 | L56: 0 | M56: 0 | N56: 0 | O56: 0 | P56: 0 | Q56: 0 | R56: 0 | S56: 0 | T56: 0 | U56: 0 | V56: 0 | W56: 0 | X56: 0 | Y56: 0 | Z56: 0 | AA56: 0 | AB56: 0 | AC56: 소계 | AD56: =SUM(AD57:AD58) -> 424 | AE56: =SUM(AE57:AE58) -> 372 | AF56: -52 | AG56: -12%
C57: 08~11 | D57: 75 | E57: 23 | F57: 8 | G57: 0 | H57: 0 | I57: 19 | J57: 25 | K57: 0 | L57: 0 | M57: 0 | N57: 0 | O57: 0 | P57: 0 | Q57: 0 | R57: 0 | S57: 0 | T57: 0 | U57: 0 | V57: 0 | W57: 0 | X57: 0 | Y57: 0 | Z57: 0 | AA57: 0 | AB57: 0 | AC57: 주간 07~19 | AD57: 330 | AE57: 309 | AF57: -21 | AG57: -6%
C58: 15~18 | D58: 97 | E58: 24 | F58: 17 | G58: 5 | H58: 1 | I58: 26 | J58: 24 | K58: 0 | L58: 0 | M58: 0 | N58: 0 | O58: 0 | P58: 0 | Q58: 0 | R58: 0 | S58: 0 | T58: 0 | U58: 0 | V58: 0 | W58: 0 | X58: 0 | Y58: 0 | Z58: 0 | AA58: 0 | AB58: 0 | AC58: 야간 19~07 | AD58: 94 | AE58: 63 | AF58: -31 | AG58: -33%
A59: 22호 | B59: 36-02-18 (거문-죽촌) | C59: 소계 | D59: 478 | E59: =SUM(E60:E61) -> 161 | F59: =SUM(F60:F61) -> 152 | G59: 0 | H59: 0 | I59: 85 | J59: 76 | K59: 2 | L59: 2 | M59: 0 | N59: 0 | O59: 0 | P59: 0 | Q59: 0 | R59: 0 | S59: 0 | T59: 0 | U59: 0 | V59: 0 | W59: 0 | X59: 0 | Y59: 0 | Z59: 0 | AA59: 0 | AB59: 0 | AC59: 소계 | AD59: =SUM(AD60:AD61) -> 1,070 | AE59: =SUM(AE60:AE61) -> 1,113 | AF59: 43 | AG59: 4%
C60: 08~11 | D60: 260 | E60: 83 | F60: 81 | G60: 0 | H60: 0 | I60: 49 | J60: 43 | K60: 2 | L60: 2 | M60: 0 | N60: 0 | O60: 0 | P60: 0 | Q60: 0 | R60: 0 | S60: 0 | T60: 0 | U60: 0 | V60: 0 | W60: 0 | X60: 0 | Y60: 0 | Z60: 0 | AA60: 0 | AB60: 0 | AC60: 주간 07~19 | AD60: 790 | AE60: 846 | AF60: 56 | AG60: 7%
C61: 15~18 | D61: 218 | E61: 78 | F61: 71 | G61: 0 | H61: 0 | I61: 36 | J61: 33 | K61: 0 | L61: 0 | M61: 0 | N61: 0 | O61: 0 | P61: 0 | Q61: 0 | R61: 0 | S61: 0 | T61: 0 | U61: 0 | V61: 0 | W61: 0 | X61: 0 | Y61: 0 | Z61: 0 | AA61: 0 | AB61: 0 | AC61: 야간 19~07 | AD61: 280 | AE61: 267 | AF61: -13 | AG61: -5%
